{"text_format":"1","workbook":"xlsx","n_sheets":2,"sheets":["ورقة1","2022 2"],"not_rendered":{"charts":0,"images":2,"macros":1,"external_links":0,"defined_names":0,"comments":0,"pivot_tables":0},"unopened":[],"bounds":{"document_bytes":16777216,"sheet_cells":100000,"rows_first":2000,"rows_last":500,"rows_between":2000,"halvings":0,"cell_chars":16384,"cell_head_chars":4096},"cells_cut":0,"cells_raw":0,"read":"whole","date_system":"1900"}

{"sheet":"ورقة1","index":0,"n_rows":42,"n_cols":6,"rows_kept":42,"cut":false,"hidden":false,"merged":[]}
[]
[]
[]
[null,null,null,1,"كلية العلوم"]
[null,null,null,2,"كلية الهندسة"]
[null,null,null,3,"كلية الزراعة"]
[null,null,null,4,"كلية الطب البشرى"]
[null,null,null,5,"كلية الصيدلة"]
[null,null,null,6,"كلية الطب البيطرى"]
[null,null,null,7,"كلية التجارة"]
[null,null,null,8,"كلية التربية"]
[null,null,null,9,"كلية الحقوق"]
[null,null,null,10,"كلية التربية الرياضية"]
[null,null,null,11,"كلية التمريض"]
[null,null,null,12,"كلية تكنولوجيا صناعة السكر والصناعات التكاملية"]
[null,null,null,13,"كلية التربية النوعية"]
[null,null,null,14,"كلية الخدمة الإجتماعية"]
[null,null,null,15,"كلية الآداب"]
[null,null,null,16,"كلية الحاسبات والمعلومات"]
[null,null,null,17,"كلية طب الأسنان"]
[null,null,null,18,"معهد جنوب مصر للأورام"]
[null,null,null,19,"المعهد الفنى للتمريض"]
[null,null,null,20,"كلية التربية للطفولة المبكرة"]
[null,null,null,21,"كلية الفنون الجميلة"]
[null,null,null,22,"معهد بحوث ودراسات البيولوجيا الجزئية"]
[null,null,null,23,"معهد بحوث تطوير وابتكار الدواء"]
[]
[]
[]
[]
[]
[null,null,null,1,"كلية العلوم","علوم"]
[null,null,null,3,"كلية الصيدلة","صيدلة"]
[null,null,null,4,"كلية التجارة","طب"]
[null,null,null,5,"كلية التربية","تربية"]
[null,null,null,6,"كلية التربية الرياضية","تجارة"]
[null,null,null,7,"كلية التربية النوعية","تربية رياضية"]
[null,null,null,8,"كلية الخدمة الإجتماعية","حاسبات ومعلومات"]
[null,null,null,9,"كلية الآداب","تربية نوعية"]
[null,null,null,10,"كلية الحاسبات والمعلومات","آداب"]
[null,null,null,11,"كلية طب الأسنان","خدمة اجتماعية"]
[null,null,null,12,"كلية التربية للطفولة المبكرة"]

{"sheet":"2022 2","index":1,"n_rows":45,"n_cols":8,"rows_kept":45,"cut":false,"hidden":false,"merged":[[2,2,2,3],[3,1,3,4]]}
[]
[null,null,null,"المجموع الكلى",410,null,null,"صيدلة"]
[]
[null,"بيان بالحد الأدني للقبول بكليات ومعاهد المجموعة العلمية لعام 2022"]
[null,"م","الكلية"," الحد الأدنى","النسبة"]
[null,1,"طب المنصورة",387,{"$f":"D6/$E$2","v":0.94390243902439019},null,"المطلوب تبديل كلمة طب في الماكرو واستبدالها بخلية H2 التي تحتوى "]
[null,2,"طب دمياط",386,0.94146341463414629,null,"على قائمة منسدلة بحيث يمكن تغير ما نبحث عنه"]
[null,3,"طب سوهاج",386,0.94146341463414629]
[null,4,"طب أسنان المنوفية",377,0.91951219512195126]
[null,5,"طب أسنان كفر الشيخ",377,0.91951219512195126]
[null,6,"طب العريش",376,0.91707317073170735]
[null,7,"طب أسنان الإسكندرية",376,0.91707317073170735]
[null,8,"طب أسنان القاهرة",376,0.91707317073170735]
[null,9,"صيدلة دمنهور",371,0.90487804878048783]
[null,10,"صيدلة طنطا",371,0.90487804878048783]
[null,11,"صيدلة الإسكندرية",370,0.90243902439024393]
[null,12,"صيدلة القاهرة",370,0.90243902439024393]
[null,13,"صيدلة المنوفية",370,0.90243902439024393]
[null,14,"صيدلة أسيوط",370,0.90243902439024393]
[null,15,"علوم كفر الشيخ",347,0.84634146341463412]
[null,16,"هندسة أسوان",347,0.84634146341463412]
[null,17,"معهد فني صحى بنها",329,0.80243902439024395]
[null,18,"آثار دمياط",328,0.8]
[null,19,"حاسبات ومعلومات المنيا رياضة",328,0.8]
[null,20,"حاسبات ومعلومات قنا رياضة",328,0.8]
[null,21,"علوم ثروة سمكية و مصايد كفر الشيخ",328,0.8]
[null,22,"تجارة المنصورة",317,0.77317073170731709]
[null,23,"تمريض سوهاج",317,0.77317073170731709]
[null,24,"ثروة سمكية السويس",317,0.77317073170731709]
[null,25,"سياسة واقتصاد بني سويف رياضة",316,0.77073170731707319]
[null,26,"تربية بور سعيد",315,0.76829268292682928]
[null,27,"تجارة الزقازيق",314,0.76585365853658538]
[null,28,"زراعة المنصورة",314,0.76585365853658538]
[null,29,"تجارة المنصورة",317,0.77317073170731709]
[null,30,"تمريض سوهاج",317,0.77317073170731709]
[null,31,"ثروة سمكية السويس",317,0.77317073170731709]
[null,32,"سياسة واقتصاد بني سويف رياضة",316,0.77073170731707319]
[null,33,"تربية بور سعيد",315,0.76829268292682928]
[null,34,"تجارة الزقازيق",314,0.76585365853658538]
[null,35,"زراعة المنصورة",314,0.76585365853658538]
[null,36,"زراعة المنوفية بشبين الكوم",290,0.70731707317073167]
[null,37,"علوم العريش رياضة",290,0.70731707317073167]
[null,38,"علوم الوادي الجديد رياضة",290,0.70731707317073167]
[null,39,"علوم جنوب الوادي رياضة",290,0.70731707317073167]
[null,40,"فنى تمريض سوهاج",290,0.70731707317073167]